[Event "Kvibergspelen September 2019"]
[Site "Prioritet Serneke Arena, Krutvagen 2, Gothenburg, Sweden"]
[Date "2019.09.28"]
[Round "6.6"]
[White "Wengholm, Anders"]
[Black "Seo, Jung Min"]
[Result "1/2-1/2"]
[TimeControl "15 minutes + 5 seconds per move from move one (Round 1 - 4) / 90 minutes + 30 seconds per move from move one (Round 5 - 8)"]
[BlackTitle "FM"]
[WhiteFideId "1704818"]
[BlackFideId "1734687"]
[WhiteElo "2218"]
[BlackElo "2437"]

1. c4 {[%clk 01:30:15]} {[%emt 00:00:45]} e5 {[%clk 01:30:29]} {[%emt
00:00:32]} 2. Nc3 {[%clk 01:30:39]} {[%emt 00:00:06]} Nc6 {[%clk 01:30:45]}
{[%emt 00:00:14]} 3. Nf3 {[%clk 01:30:42]} {[%emt 00:00:26]} Nf6 {[%clk
01:31:11]} {[%emt 00:00:04]} 4. e3 {[%clk 01:30:57]} {[%emt 00:00:14]} Bb4
{[%clk 01:30:23]} {[%emt 00:01:18]} 5. Qc2 {[%clk 01:31:14]} {[%emt 00:00:13]}
O-O {[%clk 01:30:18]} {[%emt 00:00:35]} 6. Nd5 {[%clk 01:31:09]} {[%emt
00:00:35]} Be7 {[%clk 01:30:44]} {[%emt 00:00:05]} 7. Be2 {[%clk 01:16:26]}
{[%emt 00:15:12]} h6 {[%clk 01:30:57]} {[%emt 00:00:16]} 8. O-O {[%clk
01:16:40]} {[%emt 00:00:16]} d6 {[%clk 01:31:18]} {[%emt 00:00:09]} 9. Nxe7+
{[%clk 01:10:17]} {[%emt 00:06:53]} Qxe7 {[%clk 01:31:40]} {[%emt 00:00:08]} 10.
d3 {[%clk 01:10:41]} {[%emt 00:00:07]} Bf5 {[%clk 01:29:23]} {[%emt 00:02:46]}
11. a3 {[%clk 01:10:40]} {[%emt 00:00:32]} a5 {[%clk 01:28:40]} {[%emt
00:01:12]} 12. b3 {[%clk 01:04:55]} {[%emt 00:06:15]} Nd7 {[%clk 01:25:35]}
{[%emt 00:03:36]} 13. Bb2 {[%clk 01:01:15]} {[%emt 00:04:10]} Bg6 {[%clk
01:21:51]} {[%emt 00:04:14]} 14. Nd2 {[%emt 00:06:34]} f5 {[%clk 01:20:09]}
{[%emt 00:01:57]} 15. Nb1 {[%clk 00:46:41]} {[%emt 00:09:15]} Nd8 {[%clk
01:16:55]} {[%emt 00:03:44]} 16. Nc3 {[%clk 00:27:05]} {[%emt 00:20:06]} c6
{[%clk 01:14:58]} {[%emt 00:02:28]} 17. b4 {[%clk 00:19:58]} {[%emt 00:07:37]}
Ne6 {[%clk 01:13:09]} {[%emt 00:02:18]} 18. Qd2 {[%clk 00:20:09]} {[%emt
00:00:20]} f4 {[%clk 01:12:33]} {[%emt 00:01:06]} 19. Bg4 {[%clk 00:05:32]}
{[%emt 00:15:06]} f3 {[%clk 01:01:14]} {[%emt 00:11:49]} 20. Ne4 {[%clk
00:02:23]} {[%emt 00:03:40]} fxg2 {[%clk 01:01:13]} {[%emt 00:00:31]} 21. Kxg2
{[%clk 00:01:09]} {[%emt 00:01:44]} d5 {[%clk 00:57:13]} {[%emt 00:04:30]} 22.
cxd5 {[%clk 00:01:20]} {[%emt 00:00:19]} cxd5 {[%clk 00:57:40]} {[%emt
00:00:03]} 23. Ng3 {[%clk 00:01:43]} {[%emt 00:00:07]} axb4 {[%clk 00:55:33]}
{[%emt 00:02:37]} 24. axb4 {[%clk 00:02:11]} {[%emt 00:00:02]} Rae8 {[%clk
00:55:49]} {[%emt 00:00:14]} 25. f4 {[%clk 00:02:12]} {[%emt 00:00:29]} exf4
{[%clk 00:54:53]} {[%emt 00:01:26]} 26. exf4 {[%clk 00:02:40]} {[%emt
00:00:01]} Bh7 {[%clk 00:54:01]} {[%emt 00:01:22]} 27. Bxe6+ {[%clk 00:01:06]}
{[%emt 00:02:04]} Qxe6 {[%clk 00:54:30]} 28. Rae1 {[%clk 00:01:31]} {[%emt
00:00:04]} Qa6 {[%clk 00:54:28]} {[%emt 00:00:32]} 29. Rxe8 {[%clk 00:01:35]}
{[%emt 00:00:26]} Rxe8 {[%clk 00:54:57]} 30. f5 {[%clk 00:02:04]} {[%emt
00:00:01]} Nf6 {[%clk 00:53:42]} {[%emt 00:01:45]} 31. Kh3 {[%clk 00:02:26]}
{[%emt 00:00:08]} Qb5 {[%clk 00:52:50]} {[%emt 00:01:21]} 32. Bxf6 gxf6 {[%clk
00:53:19]} 33. Qxh6 {[%clk 00:02:38]} {[%emt 00:00:02]} Qxd3 {[%clk 00:53:11]}
{[%emt 00:00:37]} 34. Rf4 {[%clk 00:02:30]} {[%emt 00:00:39]} Re4 {[%clk
00:52:54]} {[%emt 00:00:48]} 35. Rxe4 {[%clk 00:02:50]} {[%emt 00:00:11]} dxe4
{[%clk 00:53:23]} 36. Qxf6 {[%clk 00:03:11]} {[%emt 00:00:08]} Qd5 {[%clk
00:52:53]} {[%emt 00:01:00]} 37. Qg5+ {[%clk 00:02:46]} {[%emt 00:00:55]} Kf8
{[%clk 00:53:02]} {[%emt 00:00:22]} 38. Qh6+ {[%clk 00:03:06]} {[%emt
00:00:09]} Kg8 {[%clk 00:53:32]} 39. Qg5+ {[%emt 00:00:09]} 1/2-1/2

[Event "Kvibergspelen September 2019"]
[Site "Prioritet Serneke Arena, Krutvagen 2, Gothenburg, Sweden"]
[Date "2019.09.28"]
[Round "6.7"]
[White "Le, Quang Long"]
[Black "Ziegler, Ari"]
[Result "1/2-1/2"]
[TimeControl "15 minutes + 5 seconds per move from move one (Round 1 - 4) / 90 minutes + 30 seconds per move from move one (Round 5 - 8)"]
[WhiteTitle "IM"]
[BlackTitle "IM"]
[WhiteFideId "12401749"]
[BlackFideId "1700987"]
[WhiteElo "2415"]
[BlackElo "2299"]

1. c4 {[%clk 01:27:46]} {[%emt 00:03:13]} e5 {[%clk 01:30:19]} {[%emt
00:00:41]} 2. g3 {[%clk 01:27:33]} {[%emt 00:00:44]} Nf6 {[%clk 01:29:11]}
{[%emt 00:01:38]} 3. Bg2 {[%clk 01:27:58]} {[%emt 00:00:05]} d5 {[%clk
01:28:22]} {[%emt 00:01:18]} 4. cxd5 {[%clk 01:28:23]} {[%emt 00:00:05]} Nxd5
{[%clk 01:28:45]} {[%emt 00:00:06]} 5. Nf3 {[%clk 01:28:17]} {[%emt 00:00:37]}
Nc6 {[%clk 01:29:05]} {[%emt 00:00:10]} 6. O-O {[%clk 01:28:32]} {[%emt
00:00:15]} Be7 {[%clk 01:29:08]} {[%emt 00:00:26]} 7. d4 {[%clk 01:28:22]}
{[%emt 00:00:41]} exd4 {[%clk 01:21:07]} {[%emt 00:08:30]} 8. Nxd4 {[%clk
01:28:43]} {[%emt 00:00:09]} Nxd4 {[%clk 01:19:37]} {[%emt 00:01:59]} 9. Qxd4
{[%clk 01:29:08]} {[%emt 00:00:06]} Nf6 {[%clk 01:19:44]} {[%emt 00:00:23]} 10.
Qa4+ {[%clk 01:26:52]} {[%emt 00:02:47]} c6 {[%clk 01:12:38]} {[%emt 00:07:35]}
11. Rd1 {[%clk 01:08:40]} {[%emt 00:18:42]} Qb6 {[%clk 01:12:31]} {[%emt
00:00:37]} 12. Be3 {[%clk 01:08:51]} {[%emt 00:00:20]} Bc5 {[%clk 01:11:50]}
{[%emt 00:01:10]} 13. Bxc5 {[%clk 01:09:13]} {[%emt 00:00:09]} Qxc5 {[%clk
01:12:11]} {[%emt 00:00:08]} 14. Nc3 {[%clk 01:09:41]} {[%emt 00:00:03]} O-O
{[%clk 01:12:04]} {[%emt 00:00:36]} 15. Rac1 {[%clk 01:09:54]} {[%emt
00:00:18]} Qb6 {[%clk 01:08:27]} {[%emt 00:04:06]} 16. Qc2 {[%clk 01:07:59]}
{[%emt 00:02:25]} Re8 {[%clk 01:02:09]} {[%emt 00:06:48]} 17. e3 {[%clk
00:58:05]} {[%emt 00:10:24]} Be6 {[%clk 00:57:22]} {[%emt 00:05:17]} 18. Na4
{[%clk 00:45:59]} {[%emt 00:12:37]} Qc7 {[%clk 00:51:22]} {[%emt 00:06:29]} 19.
Nc5 {[%clk 00:41:29]} {[%emt 00:05:01]} Bd5 {[%clk 00:49:35]} {[%emt 00:02:16]}
20. e4 {[%clk 00:39:42]} {[%emt 00:02:17]} Be6 {[%clk 00:49:52]} {[%emt
00:00:13]} 21. h3 {[%clk 00:39:00]} {[%emt 00:01:12]} h5 {[%clk 00:45:11]}
{[%emt 00:05:10]} 22. Rd3 {[%clk 00:31:09]} {[%emt 00:08:22]} Re7 {[%clk
00:39:40]} {[%emt 00:06:01]} 23. Qd2 {[%clk 00:26:26]} {[%emt 00:05:13]} Rae8
{[%clk 00:38:47]} {[%emt 00:01:22]} 24. f4 {[%clk 00:24:52]} {[%emt 00:02:05]}
h4 {[%clk 00:07:53]} {[%emt 00:31:24]} 25. g4 {[%clk 00:23:47]} {[%emt
00:01:35]} Bxa2 {[%clk 00:06:24]} {[%emt 00:02:00]} 26. b3 {[%clk 00:22:29]}
{[%emt 00:01:48]} b6 {[%clk 00:06:09]} {[%emt 00:00:44]} 27. Na6 {[%clk
00:21:25]} {[%emt 00:01:35]} Qb7 {[%clk 00:05:26]} {[%emt 00:01:13]} 28. Qxa2
{[%clk 00:21:38]} {[%emt 00:00:17]} Nxe4 {[%clk 00:05:29]} {[%emt 00:00:27]} 29.
Rcd1 {[%clk 00:10:13]} {[%emt 00:11:55]} Ng3 {[%clk 00:04:21]} {[%emt
00:01:38]} 30. Rd8 {[%clk 00:08:49]} {[%emt 00:01:55]} Ne2+ {[%clk 00:04:16]}
{[%emt 00:00:34]} 31. Kh1 {[%clk 00:08:55]} {[%emt 00:00:23]} Nc3 {[%clk
00:04:22]} {[%emt 00:00:25]} 32. Qa1 {[%clk 00:06:29]} {[%emt 00:02:56]} Nxd1
{[%clk 00:04:44]} {[%emt 00:00:08]} 33. Rxd1 {[%clk 00:06:51]} {[%emt
00:00:09]} Re3 {[%clk 00:04:26]} {[%emt 00:00:48]} 34. Nb4 {[%clk 00:06:15]}
{[%emt 00:01:06]} Qb8 {[%clk 00:04:24]} {[%emt 00:00:32]} 35. Rf1 {[%clk
00:05:51]} {[%emt 00:00:53]} c5 {[%clk 00:04:38]} {[%emt 00:00:17]} 36. Nc6
{[%clk 00:06:05]} {[%emt 00:00:16]} Qd6 {[%clk 00:04:54]} {[%emt 00:00:14]} 37.
Qxa7 {[%clk 00:05:40]} {[%emt 00:00:55]} Qd3 {[%clk 00:05:10]} {[%emt
00:00:15]} 38. Ne5 {[%clk 00:04:28]} {[%emt 00:01:42]} Rxh3+ {[%clk 00:04:01]}
{[%emt 00:01:38]} 39. Bxh3 {[%clk 00:04:56]} {[%emt 00:00:02]} Qxh3+ {[%clk
00:04:24]} {[%emt 00:00:08]} 40. Kg1 {[%clk 00:05:23]} {[%emt 00:00:02]} Qg3+
{[%clk 00:04:41]} {[%emt 00:00:13]} 41. Kh1 {[%clk 00:05:52]} {[%emt 00:00:02]}
Qh3+ {[%clk 00:04:17]} {[%emt 00:00:53]} 1/2-1/2

[Event "Kvibergspelen September 2019"]
[Site "Prioritet Serneke Arena, Krutvagen 2, Gothenburg, Sweden"]
[Date "2019.09.28"]
[Round "6.8"]
[White "Andersson, Lars"]
[Black "Lindberg, Bengt"]
[Result "1-0"]
[TimeControl "15 minutes + 5 seconds per move from move one (Round 1 - 4) / 90 minutes + 30 seconds per move from move one (Round 5 - 8)"]
[BlackTitle "IM"]
[WhiteFideId "1706772"]
[BlackFideId "1700359"]
[WhiteElo "2029"]
[BlackElo "2397"]

1. d4 {[%clk 01:30:47]} {[%emt 00:00:11]} Nf6 {[%clk 01:29:26]} {[%emt
00:01:34]} 2. Bf4 {[%clk 01:31:08]} {[%emt 00:00:10]} d6 {[%clk 01:29:28]}
{[%emt 00:00:27]} 3. e3 {[%clk 01:30:30]} {[%emt 00:01:09]} g6 {[%clk
01:28:44]} {[%emt 00:01:13]} 4. Nf3 {[%clk 01:30:22]} {[%emt 00:00:39]} Bg7
{[%clk 01:28:56]} {[%emt 00:00:17]} 5. Be2 {[%clk 01:30:42]} {[%emt 00:00:10]}
b6 {[%clk 01:28:14]} {[%emt 00:01:11]} 6. O-O {[%clk 01:29:26]} {[%emt
00:01:48]} Bb7 {[%clk 01:27:54]} {[%emt 00:00:50]} 7. Nc3 {[%clk 01:25:34]}
{[%emt 00:04:22]} O-O {[%clk 01:27:32]} {[%emt 00:00:51]} 8. Qd3 {[%clk
01:24:17]} {[%emt 00:01:48]} a6 {[%clk 01:20:11]} {[%emt 00:07:51]} 9. Rad1
{[%clk 01:07:00]} {[%emt 00:17:47]} b5 {[%clk 01:19:17]} {[%emt 00:01:24]} 10.
a3 {[%clk 01:06:39]} {[%emt 00:00:51]} Nbd7 {[%clk 01:18:49]} {[%emt 00:00:58]}
11. e4 {[%clk 01:00:47]} {[%emt 00:06:22]} c5 {[%clk 01:11:41]} {[%emt
00:07:37]} 12. d5 {[%clk 00:51:44]} {[%emt 00:09:34]} Rc8 {[%clk 01:02:31]}
{[%emt 00:09:39]} 13. Rfe1 {[%clk 00:45:05]} {[%emt 00:07:09]} b4 {[%clk
00:54:43]} {[%emt 00:08:19]} 14. axb4 {[%clk 00:42:52]} {[%emt 00:02:44]} cxb4
{[%clk 00:55:06]} {[%emt 00:00:06]} 15. Na4 {[%clk 00:42:34]} {[%emt 00:00:49]}
Qc7 {[%clk 00:49:59]} {[%emt 00:05:36]} 16. Rc1 {[%clk 00:39:46]} {[%emt
00:03:18]} Rfe8 {[%clk 00:46:16]} {[%emt 00:04:12]} 17. c4 {[%clk 00:31:38]}
{[%emt 00:08:38]} Qa5 {[%clk 00:40:43]} {[%emt 00:06:02]} 18. b3 {[%clk
00:21:21]} {[%emt 00:10:49]} Ng4 {[%clk 00:32:45]} {[%emt 00:08:27]} 19. h3
{[%clk 00:19:27]} {[%emt 00:02:24]} Nge5 {[%clk 00:32:56]} {[%emt 00:00:19]} 20.
Nxe5 {[%clk 00:19:48]} {[%emt 00:00:10]} Nxe5 {[%clk 00:33:02]} {[%emt
00:00:24]} 21. Qd2 {[%clk 00:19:21]} {[%emt 00:00:57]} Rc7 {[%clk 00:22:44]}
{[%emt 00:10:48]} 22. Be3 {[%clk 00:12:07]} {[%emt 00:07:44]} Nd7 {[%clk
00:23:08]} {[%emt 00:00:06]} 23. Red1 {[%clk 00:12:11]} {[%emt 00:00:27]} Nc5
{[%clk 00:17:31]} {[%emt 00:06:06]} 24. Nxc5 {[%clk 00:12:36]} {[%emt
00:00:05]} dxc5 {[%clk 00:17:53]} {[%emt 00:00:08]} 25. f4 {[%clk 00:11:36]}
{[%emt 00:01:31]} Rd8 {[%clk 00:11:02]} {[%emt 00:07:20]} 26. e5 {[%clk
00:10:21]} {[%emt 00:01:46]} f6 {[%clk 00:11:21]} {[%emt 00:00:10]} 27. e6
{[%clk 00:08:58]} {[%emt 00:01:53]} Bc8 {[%clk 00:11:47]} {[%emt 00:00:05]} 28.
f5 {[%clk 00:08:37]} {[%emt 00:00:52]} gxf5 {[%clk 00:09:48]} {[%emt 00:02:28]}
29. Qc2 {[%clk 00:08:42]} {[%emt 00:00:25]} f4 {[%clk 00:07:59]} {[%emt
00:02:18]} 30. Bxf4 {[%clk 00:04:10]} {[%emt 00:05:02]} f5 {[%clk 00:08:24]}
{[%emt 00:00:05]} 31. Qxf5 {[%clk 00:04:04]} {[%emt 00:00:36]} Rf8 {[%clk
00:07:48]} {[%emt 00:01:06]} 32. Qg4 {[%clk 00:04:12]} {[%emt 00:00:21]} Rf6
{[%clk 00:01:50]} {[%emt 00:06:28]} 33. Bd3 {[%clk 00:04:33]} {[%emt 00:00:09]}
Rb7 {[%clk 00:00:51]} {[%emt 00:01:30]} 34. Be5 {[%clk 00:04:18]} {[%emt
00:00:45]} Qd8 {[%clk 00:01:14]} {[%emt 00:00:06]} 35. Bxf6 {[%clk 00:02:50]}
{[%emt 00:01:58]} exf6 {[%clk 00:01:43]} 36. Qf5 {[%clk 00:02:46]} {[%emt
00:00:34]} Qd6 {[%clk 00:01:46]} {[%emt 00:00:26]} 37. Qxh7+ {[%clk 00:02:18]}
{[%emt 00:00:59]} Kf8 {[%clk 00:02:15]} {[%emt 00:00:01]} 38. Qf5 {[%clk
00:02:30]} {[%emt 00:00:18]} Re7 {[%clk 00:01:55]} {[%emt 00:00:49]} 39. Be2
{[%clk 00:02:27]} {[%emt 00:00:34]} Ke8 {[%clk 00:02:02]} {[%emt 00:00:22]} 40.
Bh5+ {[%clk 00:01:43]} {[%emt 00:01:15]} Kd8 {[%clk 00:02:31]} {[%emt
00:00:01]} 41. Bg6 {[%clk 00:01:52]} {[%emt 00:00:20]} Kc7 {[%clk 00:02:34]}
{[%emt 00:00:26]} 42. Qh5 {[%clk 00:01:57]} {[%emt 00:00:25]} f5 {[%clk
00:02:11]} {[%emt 00:00:54]} 43. Qxf5 {[%clk 00:02:16]} {[%emt 00:00:11]} Be5
{[%clk 00:01:25]} {[%emt 00:01:15]} 44. h4 {[%clk 00:01:49]} {[%emt 00:00:57]}
Bh2+ {[%clk 00:00:57]} {[%emt 00:00:58]} 45. Kh1 {[%clk 00:02:07]} {[%emt
00:00:12]} Bf4 {[%clk 00:01:21]} {[%emt 00:00:05]} 46. Rb1 {[%clk 00:02:11]}
{[%emt 00:00:26]} a5 {[%clk 00:01:00]} {[%emt 00:00:51]} 47. Ra1 {[%clk
00:02:01]} {[%emt 00:00:40]} Be5 {[%clk 00:00:55]} {[%emt 00:00:35]} 48. Rab1
{[%clk 00:02:00]} {[%emt 00:00:31]} a4 {[%clk 00:01:17]} {[%emt 00:00:09]} 49.
bxa4 {[%clk 00:02:11]} {[%emt 00:00:19]} Ba6 {[%clk 00:01:36]} {[%emt
00:00:10]} 50. Qd3 {[%clk 00:02:11]} {[%emt 00:00:31]} Kb7 {[%clk 00:00:38]}
{[%emt 00:01:29]} 51. Rf1 {[%clk 00:02:14]} {[%emt 00:00:26]} Bg3 {[%clk
00:00:40]} {[%emt 00:00:28]} 52. Qe4 {[%clk 00:02:13]} {[%emt 00:00:31]} Kb6
{[%clk 00:00:33]} {[%emt 00:00:37]} 53. Rf3 {[%clk 00:02:07]} {[%emt 00:00:36]}
Be5 {[%clk 00:00:45]} {[%emt 00:00:18]} 54. Rbf1 {[%clk 00:01:41]} {[%emt
00:00:57]} Bd4 {[%clk 00:00:57]} {[%emt 00:00:18]} 55. Rf7 {[%clk 00:01:00]}
{[%emt 00:01:12]} Bxc4 {[%clk 00:01:01]} {[%emt 00:00:26]} 56. Rxe7 {[%clk
00:01:06]} {[%emt 00:00:24]} Bxf1 {[%clk 00:01:07]} {[%emt 00:00:24]} 57. Rf7
{[%clk 00:00:53]} {[%emt 00:00:42]} Bc4 {[%clk 00:01:13]} {[%emt 00:00:23]} 58.
e7 {[%clk 00:00:50]} {[%emt 00:00:34]} Bxd5 {[%clk 00:00:31]} {[%emt 00:01:12]}
59. Qxd5 {[%clk 00:00:43]} {[%emt 00:00:37]} Qxg6 {[%clk 00:00:33]} {[%emt
00:00:28]} 60. e8=Q {[%clk 00:00:54]} {[%emt 00:00:19]} Qb1+ {[%clk 00:00:57]}
{[%emt 00:00:06]} 61. Kh2 {[%clk 00:01:10]} {[%emt 00:00:14]} Qg1+ {[%clk
00:00:49]} {[%emt 00:00:38]} 62. Kg3 {[%clk 00:01:08]} {[%emt 00:00:32]} 1-0

[Event "Kvibergspelen September 2019"]
[Site "Prioritet Serneke Arena, Krutvagen 2, Gothenburg, Sweden"]
[Date "2019.09.28"]
[Round "6.9"]
[White "Pantzar, Milton"]
[Black "Frisk, Ellinor"]
[Result "1-0"]
[TimeControl "15 minutes + 5 seconds per move from move one (Round 1 - 4) / 90 minutes + 30 seconds per move from move one (Round 5 - 8)"]
[WhiteTitle "FM"]
[BlackTitle "WIM"]
[WhiteFideId "1721003"]
[BlackFideId "1708481"]
[WhiteElo "2376"]
[BlackElo "2227"]

1. d4 {[%clk 01:30:57]} {[%emt 00:00:02]} d5 {[%clk 01:30:39]} {[%emt
00:00:20]} 2. c4 {[%clk 01:31:18]} {[%emt 00:00:10]} c6 {[%clk 01:30:46]}
{[%emt 00:00:23]} 3. Nf3 {[%clk 01:31:41]} {[%emt 00:00:07]} Nf6 {[%clk
01:31:05]} {[%emt 00:00:10]} 4. Nbd2 {[%clk 01:32:06]} e6 {[%clk 01:31:05]} 5.
g3 {[%clk 01:31:11]} {[%emt 06:00:27]} c5 {[%clk 01:30:08]} {[%emt 00:02:31]} 6.
cxd5 {[%clk 01:27:37]} {[%emt 00:04:04]} exd5 {[%clk 01:30:18]} {[%emt
00:00:20]} 7. Bg2 {[%clk 01:27:11]} {[%emt 00:00:55]} Nc6 {[%clk 01:30:03]}
{[%emt 00:00:45]} 8. O-O {[%clk 01:26:19]} {[%emt 00:01:22]} cxd4 {[%clk
01:20:56]} {[%emt 00:09:38]} 9. Nb3 {[%clk 01:24:42]} {[%emt 00:02:07]} Be7
{[%clk 01:21:00]} {[%emt 00:00:26]} 10. Nbxd4 {[%clk 01:24:04]} {[%emt
00:01:08]} O-O {[%clk 01:20:41]} {[%emt 00:00:49]} 11. b3 {[%clk 01:20:43]}
{[%emt 00:03:51]} Ne4 {[%clk 01:17:45]} {[%emt 00:03:26]} 12. Bb2 {[%clk
01:19:27]} {[%emt 00:01:46]} Qb6 {[%clk 01:13:07]} {[%emt 00:05:08]} 13. Rc1
{[%clk 01:16:33]} {[%emt 00:03:24]} Bc5 {[%clk 01:08:01]} {[%emt 00:05:36]} 14.
e3 {[%clk 01:00:42]} {[%emt 00:16:21]} Bg4 {[%clk 01:05:40]} {[%emt 00:02:51]}
15. Nxc6 {[%clk 00:56:04]} {[%emt 00:05:08]} bxc6 {[%clk 01:05:26]} {[%emt
00:00:45]} 16. Qc2 {[%clk 00:55:09]} {[%emt 00:01:24]} Bb4 {[%clk 00:45:34]}
{[%emt 00:20:22]} 17. Ne5 {[%clk 00:49:51]} {[%emt 00:05:48]} Bf5 {[%clk
00:45:26]} {[%emt 00:00:38]} 18. Qxc6 {[%clk 00:47:36]} {[%emt 00:02:45]} Qa5
{[%clk 00:35:59]} {[%emt 00:09:57]} 19. a3 {[%clk 00:39:30]} {[%emt 00:08:36]}
Bd2 {[%clk 00:33:54]} {[%emt 00:02:34]} 20. b4 {[%clk 00:36:05]} {[%emt
00:03:56]} Qd8 {[%clk 00:31:42]} {[%emt 00:02:42]} 21. Rcd1 {[%clk 00:35:15]}
{[%emt 00:01:19]} Rc8 {[%clk 00:30:32]} {[%emt 00:01:41]} 22. Qb5 {[%clk
00:28:59]} {[%emt 00:06:46]} Rc2 {[%clk 00:26:51]} {[%emt 00:04:11]} 23. Bd4
{[%clk 00:27:57]} {[%emt 00:01:32]} Bc3 {[%clk 00:19:13]} {[%emt 00:08:08]} 24.
Nc6 {[%clk 00:21:30]} {[%emt 00:06:56]} Qd7 {[%clk 00:13:55]} {[%emt 00:05:49]}
25. Qxd5 {[%clk 00:20:37]} {[%emt 00:01:23]} Qxd5 {[%clk 00:06:18]} {[%emt
00:08:07]} 26. Ne7+ {[%clk 00:20:56]} {[%emt 00:00:10]} Kh8 {[%clk 00:06:46]}
{[%emt 00:00:02]} 27. Nxd5 {[%clk 00:21:20]} {[%emt 00:00:06]} Bxd4 {[%clk
00:06:59]} {[%emt 00:00:17]} 28. Rxd4 {[%clk 00:18:51]} {[%emt 00:02:59]} Nd2
{[%clk 00:07:00]} {[%emt 00:00:29]} 29. Rd1 {[%clk 00:15:38]} {[%emt 00:03:43]}
Nb3 {[%clk 00:07:27]} {[%emt 00:00:03]} 30. Rf4 {[%clk 00:14:43]} {[%emt
00:01:24]} Be6 {[%clk 00:07:52]} {[%emt 00:00:06]} 31. b5 {[%clk 00:10:21]}
{[%emt 00:04:52]} Rb8 {[%clk 00:06:07]} {[%emt 00:02:15]} 32. Ra4 {[%clk
00:08:46]} {[%emt 00:02:06]} g6 {[%clk 00:03:32]} {[%emt 00:03:05]} 33. Rxa7
{[%clk 00:08:39]} {[%emt 00:00:36]} Rxb5 {[%clk 00:02:20]} {[%emt 00:01:42]} 34.
Nc7 {[%clk 00:08:01]} {[%emt 00:01:08]} Rb8 {[%clk 00:01:22]} {[%emt 00:01:28]}
35. Nxe6 {[%clk 00:08:26]} {[%emt 00:00:05]} fxe6 {[%clk 00:01:50]} {[%emt
00:00:02]} 36. h4 {[%clk 00:06:44]} {[%emt 00:02:12]} Rd2 {[%clk 00:01:31]}
{[%emt 00:00:50]} 37. Rxd2 {[%clk 00:06:39]} {[%emt 00:00:35]} Nxd2 {[%clk
00:01:58]} {[%emt 00:00:02]} 38. Ra8 {[%clk 00:07:00]} {[%emt 00:00:09]} Rxa8
{[%clk 00:01:33]} {[%emt 00:00:56]} 39. Bxa8 {[%clk 00:07:28]} {[%emt
00:00:02]} Nc4 {[%clk 00:01:39]} {[%emt 00:00:24]} 40. a4 {[%clk 00:07:48]}
{[%emt 00:00:11]} Kg7 {[%clk 00:01:56]} {[%emt 00:00:13]} 41. Bc6 {[%clk
00:07:52]} {[%emt 00:00:25]} Kf6 {[%clk 00:02:09]} {[%emt 00:00:18]} 42. Bb5
{[%clk 00:08:08]} {[%emt 00:00:14]} Na5 {[%clk 00:02:28]} {[%emt 00:00:10]} 43.
f4 {[%clk 00:08:12]} {[%emt 00:00:26]} Ke7 {[%clk 00:01:14]} {[%emt 00:01:44]}
44. Kf2 {[%clk 00:08:23]} {[%emt 00:00:20]} Kd6 {[%clk 00:01:27]} {[%emt
00:00:17]} 45. Kf3 {[%clk 00:08:12]} {[%emt 00:00:40]} Nb7 {[%clk 00:01:50]}
{[%emt 00:00:07]} 46. g4 {[%clk 00:08:10]} {[%emt 00:00:32]} Kd5 {[%clk
00:01:17]} {[%emt 00:01:04]} 47. g5 {[%clk 00:08:10]} {[%emt 00:00:30]} Nd6
{[%clk 00:01:24]} {[%emt 00:00:23]} 48. Bd3 {[%clk 00:08:31]} {[%emt 00:00:08]}
e5 {[%clk 00:01:08]} {[%emt 00:00:46]} 49. fxe5 {[%clk 00:08:52]} {[%emt
00:00:10]} Kxe5 {[%clk 00:01:35]} {[%emt 00:00:03]} 50. a5 {[%clk 00:09:14]}
{[%emt 00:00:08]} Nc8 {[%clk 00:01:43]} {[%emt 00:00:22]} 51. a6 {[%clk
00:09:36]} {[%emt 00:00:08]} Na7 {[%clk 00:02:08]} {[%emt 00:00:05]} 52. h5
{[%clk 00:09:34]} {[%emt 00:00:31]} 1-0